Cogmind - Beta 17 @@@ ROGUE MODE // 2026.07.22 @ 12:31:50 Player: Smol John Result: Destroyed by B-86 Titan with Hardcell Cannon Performance ------------- Evolutions (7) 3500 Regions Visited (13) 2600 Robots Destroyed (78) 390 Value Destroyed (4176) 4176 Prototype IDs (25) 500 Alien Tech Used (0) 0 Bonus (2194) 2194 TOTAL SCORE: 13360 Bonus ------- High Alert Combat Kills 106 Follower Combat Kills 388 Entered Garrisons 400 Used RIF Installer 1000 Aligned with FarCom 300 Cogmind --------- Core Integrity 0/1300 Matter 260/300 Energy 100/100 System Corruption 27% Temperature Cool (0) Movement Core (350) Ox6 Location -3/Research Parts ------- > --- POWER (2) -------- (None) > --- PROPULSION (7) --- (None) > --- UTILITY (9) ------ Large Storage Unit Relay Coupler [Swarmer] (19) Relay Coupler [Brawler] (21) Relay Coupler [Sentry] (19) Relay Coupler [Demolisher] (29) > --- WEAPON (3) ------- (None) > --- INVENTORY (15) --- (None) Peak State ------------ > --- POWER ------------ Light Nuclear Core Micro Fission Core > --- PROPULSION ------- Light Treads Improved Treads Armored Huge Wheel Armored Huge Wheel Improved Antigrav System > --- UTILITY ---------- Advanced Heat Sink Advanced Heat Sink Large Storage Unit Improved Signal Interpreter Improved Weapon Shielding Improved Medium Armor Plating Improved Medium Armor Plating Hacking Suite Relay Coupler [NC] > --- WEAPON ----------- KE Penetrator Remote Datajack Longsword +1 > --- INVENTORY -------- Light Nuclear Core Light Nuclear Core Improved Treads Hardened Heavy Armor Plating Relay Coupler [Swarmer] Relay Coupler [Demolisher] Heavy Mass Driver Rocket Launcher Improved Remote Datajack Powered Hammer [Rating: 86] Favorites ----------- Power Micro Nuclear Core Engine Light Ion Engine Power Core Micro Nuclear Core Reactor Micro Antimatter Reactor Propulsion Light Treads Treads Light Treads Leg Flexi-carbon Leg Wheel Armored Huge Wheel Hover Unit Improved Antigrav System Flight Unit Field Propulsion Drive Utility Large Storage Unit Device Advanced Heat Sink Storage Large Storage Unit Processor Improved Signal Interpreter Hackware Hacking Suite Protection Improved Medium Armor Plating Weapon Longsword +1 Energy Gun Small Laser Energy Cannon EM Pulse Cannon Ballistic Gun Light Assault Rifle Ballistic Cannon Bore Cannon Launcher Grenade Launcher Special Weapon Remote Datajack Impact Weapon Powered Hammer Slashing Weapon Longsword +1 Build | -11 -10 -10 -10 -9 -8 -8 -8 -8 -7 -6 -5 -4 -3 ------- Run | Yrd Mat Min Exi Min Mat Gar Mat Gar Fac Fac Fac Fac Res Slots Evolved 14 | . . . . . 4 . . . 2 2 2 2 2 Power 1 | . . . . . . . . . 1 . . . . Propulsion 5 | . . . . . 2 . . . . 1 1 . 1 Utility 7 | . . . . . 2 . . . 1 1 1 1 1 Weapon 1 | . . . . . . . . . . . . 1 . Parts Attached 112 | 7 3 6 2 . 7 11 1 9 13 7 7 9 30 Power 17 | 1 . 1 1 . . 3 . 2 3 . 1 2 3 Engine 5 | 1 . 1 1 . . 2 . . . . . . . Core 9 | . . . . . . 1 . 2 3 . 1 2 . Reactor 3 | . . . . . . . . . . . . . 3 Propulsion 32 | 2 2 2 . . 2 5 . 3 1 3 1 1 10 Treads 14 | . . . . . 2 5 . 3 1 . . 1 2 Leg 9 | . 2 2 . . . . . . . 1 1 . 3 Wheel 4 | 2 . . . . . . . . . 2 . . . Hover 3 | . . . . . . . . . . . . . 3 Flight 2 | . . . . . . . . . . . . . 2 Utility 43 | 1 1 1 1 . 3 1 1 4 7 2 5 5 11 Device 9 | . . . . . 1 1 . 1 . . . 2 4 Storage 4 | 1 1 . 1 . . . . . . . . . 1 Processor 3 | . . 1 . . 1 . . . 1 . . . . Hackware 11 | . . . . . . . . . 1 1 2 2 5 Protection 16 | . . . . . 1 . 1 3 5 1 3 1 1 Artifact . | . . . . . . . . . . . . . . Weapon 20 | 3 . 2 . . 2 2 . . 2 2 . 1 6 Energy Gun 6 | 2 . . . . 1 . . . 1 . . . 2 Energy Cannon 2 | . . . . . . 1 . . . 1 . . . Ballistic Gun 3 | 1 . . . . . 1 . . . . . 1 . Ballistic Cannon 2 | . . 1 . . . . . . . . . . 1 Launcher 2 | . . 1 . . . . . . . . . . 1 Special Weapon 2 | . . . . . . . . . 1 . . . 1 Impact Weapon 1 | . . . . . . . . . . . . . 1 Slashing Weapon 2 | . . . . . 1 . . . . 1 . . . Piercing Weapon . | . . . . . . . . . . . . . . Special Melee Weapon . | . . . . . . . . . . . . . . Unidentified Prototypes 2 | . . . . . 1 . . . 1 . . . . Parts Lost 74 | . 2 . . . 1 6 . 10 4 . 2 4 45 Power 14 | . . . . . . 2 . 2 1 . 1 . 8 Propulsion 24 | . 1 . . . 1 1 . 5 1 . . 1 14 Utility 22 | . . . . . . 1 . 2 2 . 1 2 14 Weapon 14 | . 1 . . . . 2 . 1 . . . 1 9 Highest Loss Streak 20 | . 2 . . . 1 4 . 4 3 . 1 3 20 To Critical Strikes . | . . . . . . . . . . . . . . Average Backups 11 | 3 7 10 10 10 10 13 15 12 14 14 12 13 6 Power 1 | . 1 2 1 1 1 . 1 1 1 2 2 2 1 Propulsion 3 | 2 4 5 5 5 4 7 7 4 3 3 2 1 . Utility 3 | . . 1 1 1 1 1 3 2 5 5 4 5 3 Weapon 3 | . 1 2 2 3 3 4 4 4 2 2 4 3 2 Tool/Special . | . . . . . . . . . . . . . . Unused Backups 5 | . . 1 . . . . . . 1 1 1 1 . Power . | . . . . . . . . . . . . . . Propulsion . | . . . . . . . . . . . . . . Utility 1 | . . . . . . . . . . . 1 . . Weapon 2 | . . 1 . . . . . . 1 . . . . Tool/Special 2 | . . . . . . . . . . 1 . 1 . Average Slot Usage (%) 87 | . 84 98 100 100 76 95 90 87 92 85 87 85 73 Engine 3 | . 14 14 14 14 9 5 9 1 . . . . 1 Core 6 | . . . . . . 2 . 7 15 13 10 10 . Treads 13 | . . . . . 5 35 36 34 28 3 . 4 1 Leg 7 | . 21 28 28 28 24 . . . . 2 10 5 11 Wheel 4 | . 7 . . . . . . . . 12 11 10 . Device 4 | . . . . . . 9 9 8 1 . . 3 12 Storage 7 | . 14 14 14 14 9 9 9 9 7 6 5 5 6 Processor 6 | . . 12 14 14 8 9 9 2 5 6 5 5 3 Hackware 4 | . . . . . . . . . 1 8 11 9 8 Protection 9 | . . . . . 3 5 . 13 18 17 16 14 . Energy Gun 2 | . 13 14 14 14 . 3 . . . . . . 5 Energy Cannon 1 | . . . . . . 2 . . 3 3 . 1 . Ballistic Gun 2 | . 14 5 14 14 6 3 9 1 . . . 1 . Special Weapon 1 | . . . . . . . . . . 2 5 5 . Slashing Weapon 5 | . . . . . 8 7 9 9 7 6 5 5 . Peak Build Rating 86 | 6 8 16 13 13 29 30 32 34 48 64 74 85 86 Average Rating 46 | 4 6 12 12 13 22 27 29 27 40 57 71 76 70 On Entrance 30 | . 6 7 12 13 13 29 29 32 28 41 64 72 76 Avg Prop Armor Cover (%) 7 | . . . . . 16 . . 22 . 4 7 7 10 Naked Turns . | . . . . . . . . . . . . . . Heaviest Build 63 | 13 17 25 25 25 30 38 47 47 62 56 54 63 59 Greatest Support 82 | 26 26 30 30 30 40 80 80 82 82 82 56 56 60 Greatest Overweight (x) 16 | . . 2 . . . . . 2 . 1 2 1 16 Average Overweight (x) . | . . . . . . . . . . . . . . Largest Inventory Capacity 15 | 8 10 10 15 15 15 15 15 15 15 15 15 15 15 Average Capacity 14 | 6 8 10 10 15 15 15 15 15 15 15 15 15 14 Most Carried 15 | 6 10 10 10 10 13 15 15 15 15 15 15 15 13 Average Carried 12 | 3 7 9 9 10 10 13 15 12 14 14 13 14 7 Final Capacity 15 | 8 10 10 15 15 15 15 15 15 15 15 15 15 15 Final Carried 15 | 6 10 10 10 10 13 15 15 12 15 15 13 14 . Class Distribution -------------------- 72% | Scavenger-Mutant 25% | Mutant Dominant Class ---------------- Mutant | -10/Materials Mutant | -10/Mines Mutant | -10/Exiles Mutant | -9/Mines Mutant | -8/Materials Scavenger-Mutant | -8/Garrison Scavenger-Mutant | -8/Materials Scavenger-Mutant | -8/Garrison Scavenger-Mutant | -7/Factory Scavenger-Mutant | -6/Factory Scavenger-Mutant | -5/Factory Scavenger-Mutant | -4/Factory Scavenger-Mutant | -3/Research Resources | -11 -10 -10 -10 -9 -8 -8 -8 -8 -7 -6 -5 -4 -3 ----------- Run | Yrd Mat Min Exi Min Mat Gar Mat Gar Fac Fac Fac Fac Res Matter Collected 2139 | 196 97 153 . . 155 290 . 149 190 183 160 288 278 Remotely . | . . . . . . . . . . . . . . Salvage Created 3720 | . 157 82 . . 163 583 108 612 411 215 300 602 487 Parts 193 | . 14 3 . . 8 25 4 34 28 17 18 26 16 Haulers Intercepted 1 | . . . . . . . . . 1 . . . . Recyclers Shooed 1 | . 1 . . . . . . . . . . . . Parts Field Recycled . | . . . . . . . . . . . . . . Retrieved Matter . | . . . . . . . . . . . . . . Parts Self-Destructed . | . . . . . . . . . . . . . . Prevented . | . . . . . . . . . . . . . . Parts Restored . | . . . . . . . . . . . . . . Kills | -11 -10 -10 -10 -9 -8 -8 -8 -8 -7 -6 -5 -4 -3 ------- Run | Yrd Mat Min Exi Min Mat Gar Mat Gar Fac Fac Fac Fac Res Combat Hostiles Destroyed 77 | . 5 7 . . 3 14 2 12 7 4 8 8 7 Melee 60 | . . . . . 3 10 2 12 7 4 8 8 6 Guns 11 | . 5 6 . . . . . . . . . . . AOE 5 | . . 1 . . . 4 . . . . . . . Classes Destroyed 12 | . 2 1 . . 1 2 . 2 2 . . 1 1 Hauler 1 | . . . . . . . . . 1 . . . . Operator 2 | . . . . . . . . . 1 . . . 1 Watcher 1 | . . . . . . . . . . . . . 1 Swarmer 12 | . 3 4 . . . . . . . . 5 . . Grunt 22 | . 2 . . . . 8 2 3 3 . . . 4 Brawler 3 | . . . . . . . . 3 . . . . . Duelist 1 | . . . . . . . . 1 . . . . . Sentry 16 | . . . . . 3 4 . 1 1 2 1 4 . Hunter 2 | . . . . . . . . 1 1 . . . . Programmer 16 | . . . . . . 1 . 3 2 2 2 3 3 Heavy 1 | . . . . . . . . . . . . 1 . Assembled 3 | . . 3 . . . . . . . . . . . Savage 1 | . . . . . . 1 . . . . . . . Best Kill Streak 5 | . 3 3 . . 1 3 1 5 2 1 4 2 2 Combat Bots Only 5 | . 3 3 . . 1 3 1 5 2 1 4 2 2 Max Kills in Single Turn 2 | . 1 1 . . 1 2 1 1 1 1 1 1 1 Gunslinging . | . . . . . . . . . . . . . . Exploded 2 | . . 1 . . . 2 . . . . . . . Melee 1 | . . . . . 1 1 1 1 1 1 1 1 1 Uniques/NPCs Destroyed . | . . . . . . . . . . . . . . Combat | -11 -10 -10 -10 -9 -8 -8 -8 -8 -7 -6 -5 -4 -3 -------- Run | Yrd Mat Min Exi Min Mat Gar Mat Gar Fac Fac Fac Fac Res Hostile Shots Fired 880 | . 29 39 . . 14 65 7 112 103 51 38 43 379 Missed 246 | . 8 10 . . 3 13 2 40 32 14 11 8 105 Hits 634 | . 21 29 . . 11 52 5 72 71 37 27 35 274 Melee 8 | . . 3 . . . . . 5 . . . . . Projectile 626 | . 21 26 . . 11 52 5 67 71 37 27 35 274 Critical Strikes 37 | . 1 . . . 1 4 . 5 1 . 1 1 23 Actively Blocked 2 | . . . . . . . . . 1 . . . 1 Part Disruptions 3 | . . 2 . . . . . . . . . 1 . Damage Taken 11802 | . 251 366 . . 255 1058 80 1091 916 398 732 771 5884 Core 2147 | . 10 76 . . 49 178 31 142 57 71 103 89 1341 Absorbed by Shields . | . . . . . . . . . . . . . . Redirected to Shielding 380 | . . . . . . . . 21 155 . 131 . 73 Ignored by Resistances 19 | . . . . . . . . 19 . . . . . Regen/Repaired (Parts) 345 | . . . . . . . . . . . . . 345 Core Remaining (%) 79 | 100 . . . 65 . . . 27 91 91 89 92 . Volleys Fired 86 | . 19 26 . . 1 12 . . 6 1 8 8 5 Largest 2 | . 2 2 . . 1 1 . . 1 1 1 1 1 Hottest 88 | . 60 88 . . 20 40 . . 63 5 5 5 75 Shots Fired 119 | . 31 43 . . 1 12 . . 8 1 8 8 7 Gun 66 | . 31 28 . . 1 1 . . . . . . 5 Cannon 20 | . . 13 . . . . . . 6 . . . 1 Launcher 14 | . . 2 . . . 11 . . . . . . 1 Special 19 | . . . . . . . . . 2 1 8 8 . Kinetic 41 | . 19 18 . . 1 . . . 2 . . . 1 Thermal 29 | . 3 23 . . . 1 . . . . . . 2 Explosive 14 | . . 2 . . . 11 . . . . . . 1 Electromagnetic 16 | . 9 . . . . . . . 4 . . . 3 Robot Hit Streak 12 | . 7 8 . . . 3 . . 2 2 10 12 1 Robot Miss Streak 5 | . 5 5 . . . 1 . . 3 . . 1 1 Penetration Max . | . . . . . . . . . . . . . . Secondary Targets 1 | . . 1 . . . . . . . . . . . Max Gunslinging Chain 1 | . . 1 . . . . . . . . . . . Shots Hit Robots 279 | . 19 21 . . 7 26 8 27 30 14 27 44 56 Core Hits 112 | . 8 9 . . 3 31 2 13 10 4 9 13 10 Critical Kills 1 | . . . . . . . . . . . . . 1 Critical Parts Destroyed 3 | . . . . . . . . . . . . . 3 Critical Strikes 22 | . . . . . . 1 . 5 3 . 3 3 7 Smash 4 | . . . . . . . . . . . . . 4 Sever 18 | . . . . . . 1 . 5 3 . 3 3 3 Melee Attacks 365 | . . . . . 25 39 8 34 37 46 46 45 85 Impact 68 | . . . . . . . . . . . . . 68 Slashing 297 | . . . . . 25 39 8 34 37 46 46 45 17 Piercing . | . . . . . . . . . . . . . . Sneak Attacks 15 | . . . . . 1 2 1 . 4 1 . 5 1 Combat Hostiles 3 | . . . . . 1 . 1 . . 1 . . . Follow-up Attacks . | . . . . . . . . . . . . . . Damage Inflicted 11605 | . 194 273 . . 332 1916 407 1076 1430 640 862 1768 2707 Guns 420 | . 194 199 . . . . . . . . . . 27 Cannons 70 | . . . . . . . . . 70 . . . . Explosions 887 | . . 74 . . . 779 . . . . . . 34 Melee 10228 | . . . . . 332 1137 407 1076 1360 640 862 1768 2646 Ramming . | . . . . . . . . . . . . . . Kinetic 150 | . 115 15 . . . . . . 20 . . . . Thermal 218 | . 34 184 . . . . . . . . . . . Explosive 887 | . . 74 . . . 779 . . . . . . 34 Electromagnetic 122 | . 45 . . . . . . . 50 . . . 27 Impact 1883 | . . . . . . . . . . . . . 1883 Slashing 8345 | . . . . . 332 1137 407 1076 1360 640 862 1768 763 Piercing . | . . . . . . . . . . . . . . Highest Corruption 27 | . . . . . . 1 1 8 5 3 2 4 27 Average Corruption 4 | . . . . . . 1 1 6 3 2 1 3 10 Corruption Purged . | . . . . . . . . . . . . . . Corruption Blocked . | . . . . . . . . . . . . . . Effects 120 | . . . . . . 7 2 22 20 11 5 20 33 Message Errors 37 | . . . . . . . 1 6 8 2 2 9 9 Matter Fused 36 | . . . . . . 4 . 8 5 5 2 2 10 Heat Flow Errors 14 | . . . . . . 2 . 2 . 1 . 4 5 Energy Discharges 7 | . . . . . . 1 . 1 . 1 1 2 1 Data Loss (minor) 12 | . . . . . . . 1 2 3 1 . 2 3 Data Loss (major) 7 | . . . . . . . . 3 1 . . 1 2 Misfires 4 | . . . . . . . . . 2 . . . 2 Alerts 3 | . . . . . . . . . 1 1 . . 1 Overload Shots . | . . . . . . . . . . . . . . Overflow Damage 809 | . . . . . . 69 45 . 99 55 44 86 411 Projectiles 1 | . . . . . . . . . . . . . 1 Explosions 28 | . . . . . . 28 . . . . . . . Melee 780 | . . . . . . 41 45 . 99 55 44 86 410 Knockbacks 16 | . . . . . . . . . . . . . 16 Impact 9 | . . . . . . . . . . . . . 9 Kinetic . | . . . . . . . . . . . . . . Secondary 7 | . . . . . . . . . . . . . 7 Self-Inflicted Damage 226 | . . 18 . . . 180 . . . . . . 28 Shots 9 | . . 1 . . . 7 . . . . . . 1 Rammed 2 | . . . . . . . . . . . . . 2 Targets Rammed 2 | . . . . . . . . . . . . . 2 Kicked . | . . . . . . . . . . . . . . Crushed . | . . . . . . . . . . . . . . Highest Temperature 261 | . 94 219 . . 5 261 . 137 49 208 . 173 206 Average Temperature 68 | . 46 78 . . 5 108 . 64 20 103 . 85 96 Received Heat Transfer 2158 | . 120 140 . . 63 378 45 108 219 48 27 117 893 Effects 3 | . . 3 . . . . . . . . . . . Interference 3 | . . 3 . . . . . . . . . . . Siege Activations . | . . . . . . . . . . . . . . Martial Activations . | . . . . . . . . . . . . . . Shielding Activations . | . . . . . . . . . . . . . . Robots Disrupted . | . . . . . . . . . . . . . . Combat Hostiles . | . . . . . . . . . . . . . . Robots Corrupted 1 | . . . . . . . . . . . . . 1 Combat Hostiles 1 | . . . . . . . . . . . . . 1 Parts Fried 4 | . . . . . . . . . . . . . 4 Impact Corruptions 18 | . . . . . . . . . . . . . 18 Robots Melted . | . . . . . . . . . . . . . . Combat Hostiles . | . . . . . . . . . . . . . . Parts Melted 2 | . . . . . . . . . . . . . 2 Heat Transferred 500 | . 75 425 . . . . . . . . . . . Parts Sabotaged . | . . . . . . . . . . . . . . Parts Stolen . | . . . . . . . . . . . . . . Parts Stripped . | . . . . . . . . . . . . . . Power Chain Reactions . | . . . . . . . . . . . . . . Alert | -11 -10 -10 -10 -9 -8 -8 -8 -8 -7 -6 -5 -4 -3 ------- Run | Yrd Mat Min Exi Min Mat Gar Mat Gar Fac Fac Fac Fac Res Maximum Alert Level 3 | . . . . . . 3 2 2 1 . . . . Low Security (%) 76 | 100 100 100 . 100 100 26 . . 82 100 100 100 100 Level 1 11 | . . . . . . 40 59 28 17 . . . . Level 2 8 | . . . . . . 14 40 71 . . . . . Level 3 2 | . . . . . . 18 . . . . . . . Level 4 . | . . . . . . . . . . . . . . Level 5 . | . . . . . . . . . . . . . . High Security . | . . . . . . . . . . . . . . Max Security . | . . . . . . . . . . . . . . Peak Influence 917 | . 85 62 . . 33 917 446 572 300 64 101 62 50 Initial 446 | . . 15 . . . 14 446 237 300 . . . . Average 121 | . 33 6 . . 5 378 401 442 107 14 21 11 3 Influence Increases 3119 | . 145 118 . . 124 1003 40 455 237 238 246 283 230 Destroy 0b10 Robot/C 1760 | . 100 80 . . 60 480 40 300 140 80 160 180 140 Destroy 0b10 Robot/NC 20 | . . . . . . . . . 10 . . . 10 Destroy Leader 332 | . 20 10 . . 30 40 . 20 50 40 30 70 22 Allied During Kill 37 | . . . . . 2 26 . 5 . . . 4 . Successful Hack 182 | . 10 . . . 6 37 . . 13 66 21 6 23 Disable Machine 135 | . . . . . . 60 . 15 15 30 . 15 . Anti-Garrison Action 250 | . . . . . . 200 . 50 . . . . . Destroy Structure 208 | . . 28 . . 11 85 . 5 9 22 20 8 20 Lose Combat Pursuer 195 | . 15 . . . 15 75 . 60 . . 15 . 15 Influence Decreases 3119 | . 105 96 62 . 102 108 591 249 809 237 247 281 232 Entered New Map 970 | . . 25 62 . . 8 471 129 272 . 1 . 2 Time Decay 1740 | . 105 71 . . 97 . 120 . 497 237 226 236 151 Lost Part 314 | . . . . . 5 60 . 100 40 . 20 10 79 Lost Ally 95 | . . . . . . 40 . 20 . . . 35 . Squads Dispatched 26 | . . . . . 2 . . . 5 7 4 5 3 Investigation 3 | . . . . . . . . . . 2 . 1 . Extermination 11 | . . . . . . . . . 2 3 2 2 2 Reinforcement 12 | . . . . . 2 . . . 3 2 2 2 1 Assault . | . . . . . . . . . . . . . . Garrison . | . . . . . . . . . . . . . . Intercept . | . . . . . . . . . . . . . . Searches Triggered . | . . . . . . . . . . . . . . Construction Impeded 1 | . . . . . . . . . 1 . . . . Haulers Reinforced 1 | . . . . . . . . . 1 . . . . Active Scanning Responses . | . . . . . . . . . . . . . . Cargo Convoy Interrupts . | . . . . . . . . . . . . . . Stealth | -11 -10 -10 -10 -9 -8 -8 -8 -8 -7 -6 -5 -4 -3 --------- Run | Yrd Mat Min Exi Min Mat Gar Mat Gar Fac Fac Fac Fac Res Distress Signals 7 | . . 1 . . 1 . 1 . 2 . 1 . 1 Communications Jammed . | . . . . . . . . . . . . . . Distress Signals . | . . . . . . . . . . . . . . Times Spotted 124 | . 7 9 . . 6 20 2 18 12 9 13 8 20 Peak Tracking Total 7 | . 3 3 . . 5 4 2 7 5 1 5 2 6 Tactical Retreats 10 | . 1 . . . 1 3 . 3 . . 1 . 1 Traps | -11 -10 -10 -10 -9 -8 -8 -8 -8 -7 -6 -5 -4 -3 ------- Run | Yrd Mat Min Exi Min Mat Gar Mat Gar Fac Fac Fac Fac Res Traps Triggered 15 | . . . . . 1 4 . 2 1 1 6 . . Indirectly . | . . . . . . . . . . . . . . Trap Hack Attempts . | . . . . . . . . . . . . . . Triggered . | . . . . . . . . . . . . . . Disarmed . | . . . . . . . . . . . . . . Reprogrammed . | . . . . . . . . . . . . . . Reused . | . . . . . . . . . . . . . . Traps Extracted . | . . . . . . . . . . . . . . Installed . | . . . . . . . . . . . . . . Triggered . | . . . . . . . . . . . . . . Machines | -11 -10 -10 -10 -9 -8 -8 -8 -8 -7 -6 -5 -4 -3 ---------- Run | Yrd Mat Min Exi Min Mat Gar Mat Gar Fac Fac Fac Fac Res Machines Disabled 11 | . . . . . . 5 . 2 1 2 . 1 . Max in Single Turn 1 | . . . . . . 1 . 1 1 1 . . . Garrison Access 6 | . . . . . . . . . . . 3 2 1 Garrison Relay 2 | . . . . . . 1 . 1 . . . . . Machines Repaired . | . . . . . . . . . . . . . . Machines Dismantled . | . . . . . . . . . . . . . . Machines Sabotaged . | . . . . . . . . . . . . . . Overloaded Fab Kills . | . . . . . . . . . . . . . . Hacking | -11 -10 -10 -10 -9 -8 -8 -8 -8 -7 -6 -5 -4 -3 --------- Run | Yrd Mat Min Exi Min Mat Gar Mat Gar Fac Fac Fac Fac Res Machines Accessed 44 | . 3 . 2 . 3 3 2 . 6 11 6 4 4 Terminals 21 | . 3 . . . 2 3 1 . 2 8 1 . 1 Fabricators 4 | . . . . . . . . . 1 1 1 1 . Repair Stations 5 | . . . . . . . . . 2 . 1 1 1 Recycling Units 1 | . . . . . . . . . 1 . . . . Scanalyzers 3 | . . . . . . . . . . 2 . . 1 Garrison Access 8 | . . . . . 1 . 1 . . . 3 2 1 Total Hacks 87 | . 7 . 2 . 5 4 2 . 11 28 12 8 8 Successful 47 | . 3 . 2 . 2 3 1 . 5 13 8 5 5 Failed 39 | . 4 . . . 3 1 1 . 6 15 4 3 2 Catastrophic 10 | . . . . . . 1 1 . . 5 2 1 . Database Lockouts 1 | . . . . . . . . . . . . . 1 Manual 33 | . 7 . 1 . 4 . 1 . 3 15 1 . 1 Terminals 44 | . 7 . . . 4 4 1 . 3 22 2 . 1 Fabricators 7 | . . . . . . . . . 1 1 2 3 . Repair Stations 12 | . . . . . . . . . 5 . 2 1 4 Recycling Units 2 | . . . . . . . . . 2 . . . . Scanalyzers 7 | . . . . . . . . . . 5 . . 2 Garrison Access 13 | . . . . . 1 . 1 . . . 6 4 1 Terminal Hacks 13 | . 1 . 2 . . 3 . . . 6 1 . . Record 5 | . . . 1 . . . . . . 3 1 . . Robot Analysis 1 | . . . . . . . . . . 1 . . . Open Door 1 | . . . . . . 1 . . . . . . . Level Access Points 1 | . . . . . . . . . . 1 . . . Terminal Index 1 | . . . . . . . . . . 1 . . . Hauler Manifests 1 | . 1 . . . . . . . . . . . . Garrison Registry 1 | . . . . . . 1 . . . . . . . Security Stations 1 | . . . . . . 1 . . . . . . . Proto ID Catalog 1 | . . . 1 . . . . . . . . . . Fabricator Hacks 2 | . . . . . . . . . 1 . . 1 . Network Status 1 | . . . . . . . . . 1 . . . . Build 1 | . . . . . . . . . . . . 1 . Repair Station Hacks 5 | . . . . . . . . . 1 . 1 . 3 Scan Component 3 | . . . . . . . . . 1 . 1 . 1 Repair 1 | . . . . . . . . . . . . . 1 Refit 1 | . . . . . . . . . . . . . 1 Recycling Unit Hacks 2 | . . . . . . . . . 2 . . . . Report Inventory 1 | . . . . . . . . . 1 . . . . Retrieve Components 1 | . . . . . . . . . 1 . . . . Scanalyzer 5 | . . . . . . . . . . 4 . . 1 Retrieve Study 5 | . . . . . . . . . . 4 . . 1 Garrison Access Hacks 13 | . . . . . 1 . 1 . . . 6 4 1 Unlock Access 2 | . . . . . 1 . 1 . . . . . . Seal Access 6 | . . . . . . . . . . . 3 2 1 Coupler Status 5 | . . . . . . . . . . . 3 2 . Unauthorized Hacks 7 | . 2 . . . 1 . . . 1 3 . . . Terminals 7 | . 2 . . . 1 . . . 1 3 . . . Assimilate 2 | . . . . . 1 . . . . 1 . . . Botnet 5 | . 2 . . . . . . . 1 2 . . . Fabricators . | . . . . . . . . . . . . . . Repair Stations . | . . . . . . . . . . . . . . Recycling Units . | . . . . . . . . . . . . . . Scanalyzers . | . . . . . . . . . . . . . . Garrison Access . | . . . . . . . . . . . . . . Data Cores Recovered . | . . . . . . . . . . . . . . Used . | . . . . . . . . . . . . . . Hacking Detections 32 | . 2 . . . 2 1 1 . 6 11 3 3 3 Full Trace Events 4 | . . . . . . 1 . . . 2 . 1 . Feedback Events . | . . . . . . . . . . . . . . Feedback Blocked . | . . . . . . . . . . . . . . Robot Schematics Acquired . | . . . . . . . . . . . . . . Robots Built 3 | . . . . . . . . . . . . 3 . Authchips . | . . . . . . . . . . . . . . Time 187 | . . . . . . . . . . . . 187 . Total Robot Build Rating 21 | . . . . . . . . . . . . 21 . Part Schematics Acquired . | . . . . . . . . . . . . . . Parts Built . | . . . . . . . . . . . . . . Authchips . | . . . . . . . . . . . . . . Time . | . . . . . . . . . . . . . . Total Part Build Rating . | . . . . . . . . . . . . . . Part Studies Acquired 5 | . . . . . . . . . . 4 . . 1 Parts Repaired 1 | . . . . . . . . . . . . . 1 Time 26 | . . . . . . . . . . . . . 26 Parts Recycled . | . . . . . . . . . . . . . . Recycled Matter . | . . . . . . . . . . . . . . Retrieved Matter . | . . . . . . . . . . . . . . Retrieved Components 3 | . . . . . . . . . 3 . . . . Parts Scanalyzed . | . . . . . . . . . . . . . . Part Schematics Acquired . | . . . . . . . . . . . . . . Parts Damaged . | . . . . . . . . . . . . . . Bothacking | -11 -10 -10 -10 -9 -8 -8 -8 -8 -7 -6 -5 -4 -3 ------------ Run | Yrd Mat Min Exi Min Mat Gar Mat Gar Fac Fac Fac Fac Res Used RIF Installer 2 | . . . . . . 1 . 1 . . . . . Watcher Feeds 1 | . . . . . . . . 1 . . . . . Robots Hacked 12 | . . . . . . . . . 1 1 5 5 . Non-combat 8 | . . . . . . . . . . . 4 4 . Combat 4 | . . . . . . . . . 1 1 1 1 . Robot Hacks Applied 16 | . . . . . . . . . 1 1 8 6 . parse_system 1 | . . . . . . . . . 1 . . . . no_distress 2 | . . . . . . . . . . . 1 1 . start_evac 4 | . . . . . . . . . . . 1 3 . find_chute 1 | . . . . . . . . . . . 1 . . map_walls 1 | . . . . . . . . . . . 1 . . find_recycling 1 | . . . . . . . . . . . 1 . . link_fov 3 | . . . . . . . . . . . 2 1 . reboot_system 1 | . . . . . . . . . . . . 1 . formatsys_high 2 | . . . . . . . . . . 1 1 . . Relay Couplers Released 16 | . . . . . . 3 . 4 . . 3 3 3 Machine Destruction 16 | . . . . . . 3 . 4 . . 3 3 3 Attached 10 | . . . . . . . . . . 1 2 2 5 Fabnet Peak Effective % . | . . . . . . . . . . . . . . Robots Rewired 5 | . . . . . . 3 . 2 . . . . . Allies Hacked . | . . . . . . . . . . . . . . Hacks Repelled . | . . . . . . . . . . . . . . Allies | -11 -10 -10 -10 -9 -8 -8 -8 -8 -7 -6 -5 -4 -3 -------- Run | Yrd Mat Min Exi Min Mat Gar Mat Gar Fac Fac Fac Fac Res Total Allies 12 | . . . . 1 . 3 . 2 . 2 1 3 . Largest Group 3 | . . . . 1 1 3 . 2 . 1 1 3 . Highest-Rated Group 141 | . . . . 31 31 84 . 42 . 90 49 141 . Highest-Rated Ally 90 | . . . . 31 31 39 . 21 . 90 49 47 . Total Orders . | . . . . . . . . . . . . . . Ally Attacks 85 | . . . . . . 57 . 13 . . . 15 . Total Damage 1599 | . . . . . . 887 . 307 . . . 405 . Kills 14 | . . . . . . 10 . 3 . . . 1 . Allies Corrupted 1 | . . . . . . . . . . 1 . . . Allies Melted 1 | . . . . . . 1 . . . . . . . Intel | -11 -10 -10 -10 -9 -8 -8 -8 -8 -7 -6 -5 -4 -3 ------- Run | Yrd Mat Min Exi Min Mat Gar Mat Gar Fac Fac Fac Fac Res Active Infowar (turns) . | . . . . . . . . . . . . . . Robot Analysis Total 1 | . . . . . . . . . . 1 . . . Derelict Logs Recovered 2 | . . 2 . . . . . . . . . . . Drone Launches . | . . . . . . . . . . . . . . Drone Recoveries . | . . . . . . . . . . . . . . Exploration | -11 -10 -10 -10 -9 -8 -8 -8 -8 -7 -6 -5 -4 -3 ------------- Run | Yrd Mat Min Exi Min Mat Gar Mat Gar Fac Fac Fac Fac Res Turns Passed 10592 | 59 279 435 307 37 529 1515 246 797 1379 1189 1156 1254 1410 Spaces Moved 6733 | 48 193 292 253 30 274 778 119 393 780 999 950 917 707 Core 17 | 3 . . . . . . . . . . . . 14 Treads 2079 | . . . . . . 778 119 377 780 14 . . 11 Legs 1590 | . 154 292 253 30 274 . . . . . 1 . 586 Wheels 2968 | 45 39 . . . . . . 16 . 985 949 917 17 Hover 79 | . . . . . . . . . . . . . 79 Flight . | . . . . . . . . . . . . . . Fastest Speed 50 | 50 90 120 120 120 120 160 160 130 155 90 90 90 90 Average Speed 123 | 89 113 121 120 120 120 160 160 155 155 91 90 102 145 Slowest Speed 850 | 100 120 260 120 120 120 160 160 160 156 232 220 105 850 Overloaded Moves . | . . . . . . . . . . . . . . Propulsion Burnouts . | . . . . . . . . . . . . . . Robots Hopped . | . . . . . . . . . . . . . . Potential Cave-ins 37 | . . . . . 7 . . . . 10 11 . 9 Cave-ins Triggered 1 | . . . . . . . . . . . . . 1 Exploration Rate (%) 28 | 4 30 48 61 13 25 72 9 38 19 24 22 13 18 Regions Visited 13 Branch Regions 3 Pre-discovered Areas 2 | . . 1 1 . . . . . . . . . . Known Exits Taken 6 | . . . . . 1 . 1 . 1 1 1 1 . Unknown Exits Taken 5 | 1 1 1 1 1 . . . . . . . . . Scrap Searched 1 | . . 1 . . . . . . . . . . . Spaces Dug 98 | . . . . . 18 2 . . 8 30 19 5 16 Terrain Destroyed 185 | . . 31 . . 18 45 . . 8 30 19 5 29 Melee 96 | . . . . . 18 2 . . 8 30 19 5 14 Projectile 18 | . . 16 . . . . . . . . . . 2 AOE 70 | . . 14 . . . 43 . . . . . . 13 Terrain Rammed . | . . . . . . . . . . . . . . Walls Destroyed . | . . . . . . . . . . . . . . Machines Disabled . | . . . . . . . . . . . . . . Actions | -11 -10 -10 -10 -9 -8 -8 -8 -8 -7 -6 -5 -4 -3 --------- Run | Yrd Mat Min Exi Min Mat Gar Mat Gar Fac Fac Fac Fac Res Total 8489 | 60 224 330 257 31 447 992 166 544 900 1231 1194 1184 929 Wait 992 | . 3 . . 2 132 116 39 75 46 148 160 183 88 Move 6717 | 47 192 291 252 29 273 776 118 391 779 998 949 916 706 Hop . | . . . . . . . . . . . . . . Pick Up 59 | 6 5 2 1 . 6 4 . 4 8 3 4 9 7 Fast Attach 70 | 6 1 1 . . 3 4 1 5 6 8 12 5 18 Attach 49 | . 2 . . . 3 3 . 6 6 1 5 7 16 Detach 8 | . 1 . . . . . . . 4 1 2 . . Swap 38 | 1 1 6 2 . 2 10 . 1 4 4 4 3 . Drop 42 | . . 4 2 . 2 3 . 3 4 12 3 8 1 Fire 86 | . 19 26 . . 1 12 . . 6 1 8 8 5 Melee 365 | . . . . . 25 39 8 34 37 46 46 45 85 Ram 2 | . . . . . . . . . . . . . 2 Kick . | . . . . . . . . . . . . . . Crush . | . . . . . . . . . . . . . . Escape Stasis 9 | . . . . . . . . . . 8 . . 1 Rewire 52 | . . . . . . 25 . 25 . 1 1 . . Trap . | . . . . . . . . . . . . . . Miscellaneous . | . . . . . . . . . . . . . . Route ------- -11/Scrapyard -10/Materials -10/Mines -10/Exiles -9/Mines -8/Materials -8/Garrison (discovered 4 exits: *Mat x4) -8/Materials -8/Garrison -7/Factory (discovered 2 exits: *Fac / *Sto) -6/Factory (discovered 4 exits: *Fac x4) -5/Factory (discovered 2 exits: *Fac / *Upp) -4/Factory (discovered 2 exits: *Res / *Upp) -3/Research History --------- Turn | Location | Event 9 | -11/Scrapyard | Discovered new exit (range 15) 60 | -11/Scrapyard | Entered Materials 214 | -10/Materials | Discovered new exit (range 15) 310 | -10/Materials | Build established: Mutant 339 | -10/Materials | Entered Mines 403 | -10/Mines | Assembled infested the area 408 | -10/Mines | Assisted by a Guerilla fighting off Assembled 507 | -10/Mines | Learned Materials stockpile data 522 | -10/Mines | Learned Materials stockpile data 738 | -10/Mines | Learned location of Storage (-7) 768 | -10/Mines | Deemed a non-threat by the Exiles lab entrance 769 | -10/Mines | Discovered new exit (range 5) 774 | -10/Mines | Entered Exiles 804 | -10/Exiles | Met 8R-AWN 822 | -10/Exiles | Met EX-HEX 857 | -10/Exiles | Met EX-BIN 873 | -10/Exiles | Aligned with FarCom system 874 | -10/Exiles | Given EX-Vault access code 905 | -10/Exiles | Opened EX-Vault 918 | -10/Exiles | Found Longsword +1 943 | -10/Exiles | Warned to stay clear of 0b10 Research branches 984 | -10/Exiles | Met EX-DEC 989 | -10/Exiles | Learned location of Zion (-6) 1066 | -10/Exiles | Discovered new exit (range 10) 1081 | -10/Exiles | Left Exiles lab with Longsword +1 1081 | -10/Exiles | Entered Mines 1084 | -9/Mines | Received a Mining Laser from a helpful Derelict 1098 | -9/Mines | Discovered new exit (range 12) 1118 | -9/Mines | Entered Materials 1118 | -8/Materials | Accompanied by 1 ally 1118 | -8/Materials | Evolved 4 slots: Propulsion x2, Utility x2 1642 | -8/Materials | Identified exit to Garrison 1647 | -8/Materials | Entered Garrison 1819 | -8/Garrison | Triggered checkpoint 1845 | -8/Garrison | Triggered checkpoint 1917 | -8/Garrison | Discovered new exit (range 15) 1946 | -8/Garrison | Learned Materials security intel 2011 | -8/Garrison | Triggered checkpoint 2347 | -8/Garrison | Build established: Scavenger-Mutant 2387 | -8/Garrison | Triggered checkpoint 2436 | -8/Garrison | Discovered new exit (range 13) 2513 | -8/Garrison | Triggered checkpoint 2589 | -8/Garrison | Lost 4 parts (1p1n1u1w) 2811 | -8/Garrison | Triggered checkpoint 2823 | -8/Garrison | Installed Relay Interface Framework 2871 | -8/Garrison | Discovered new exit (range 9) 2871 | -8/Garrison | Discovered new exit (range 60) 2871 | -8/Garrison | Discovered new exit (range 39) 2871 | -8/Garrison | Discovered new exit (range 32) 2875 | -8/Garrison | Triggered checkpoint 2885 | -8/Garrison | Garrison Relay disabled 2889 | -8/Garrison | Triggered checkpoint 3162 | -8/Garrison | Entered Materials 3390 | -8/Materials | Identified exit to Garrison 3408 | -8/Materials | Entered Garrison 3436 | -8/Garrison | Expanded RIF knowledge: Watcher Feeds 3511 | -8/Garrison | Triggered checkpoint 3545 | -8/Garrison | Core integrity fell below 50% 3575 | -8/Garrison | Lost 4 parts (1p2n1w) 3685 | -8/Garrison | Lost 4 parts (1p2n1u) 3963 | -8/Garrison | Garrison Relay disabled 4165 | -8/Garrison | Discovered new exit (range 9) 4205 | -8/Garrison | Entered Factory 4205 | -7/Factory | Evolved 2 slots: Power x1, Utility x1 4905 | -7/Factory | Build established: Mutant 5132 | -7/Factory | Lost 3 parts (1p1n1u) 5383 | -7/Factory | Discovered new exit (range 9) 5395 | -7/Factory | Identified exit to Storage 5410 | -7/Factory | Build established: Scavenger-Mutant 5428 | -7/Factory | Discovered new exit (range 10) 5441 | -7/Factory | Identified exit to Factory 5584 | -7/Factory | Entered another Factory area 5584 | -6/Factory | Evolved 2 slots: Propulsion x1, Utility x1 6437 | -6/Factory | Identified exit to Factory 6773 | -6/Factory | Entered another Factory area 6773 | -5/Factory | Evolved 2 slots: Propulsion x1, Utility x1 7904 | -5/Factory | Discovered new exit (range 8) 7911 | -5/Factory | Identified exit to Upper Caves 7926 | -5/Factory | Discovered new exit (range 5) 7929 | -5/Factory | Identified exit to Factory 7929 | -5/Factory | Entered another Factory area 7929 | -4/Factory | Evolved 2 slots: Utility x1, Weapon x1 8211 | -4/Factory | Fabricated G-67 Veteran? 8260 | -4/Factory | Lost 3 allies 8613 | -4/Factory | Discovered new exit (range 8) 8621 | -4/Factory | Identified exit to Upper Caves 8865 | -4/Factory | Lost 3 parts (1n1u1w) 9148 | -4/Factory | Discovered new exit (range 6) 9153 | -4/Factory | Identified exit to Research 9183 | -4/Factory | Entered Research 9183 | -3/Research | Evolved 2 slots: Propulsion x1, Utility x1 9305 | -3/Research | Lost 14 parts (2p5n4u3w) 9352 | -3/Research | Lost 3 parts (1p2u) 9592 | -3/Research | Central database locked down 9736 | -3/Research | System corruption reached 10% 9772 | -3/Research | Lost 8 parts (2p3n2u1w) 10119 | -3/Research | Repaired Lrg. Storage Unit 10504 | -3/Research | Spotted B-86 Titan 10545 | -3/Research | Core integrity fell below 50% 10564 | -3/Research | Core integrity fell below 20% 10564 | -3/Research | Crushed by falling debris 10593 | -3/Research | Destroyed by B-86 Titan with Hardcell Cannon Last Messages --------------- 10550_ The unstable cave ceiling collapses. 10552_ Slammed into P-80 Master. 10552_ Imp. Signal Interpreter broken. 10552_ Destabilizing: Short circuit. 10553_ Lgt. Nuclear Core destroyed. 10554_ B-86 Titan exits siege mode. 10556_ O|QYQPDKYJ6>ZPZ<:2|ONIU9/VEAJY 10558_ The unstable cave ceiling collapses. 10560_ Penetrated by Slug. 10560_ Adv. Heat Sink destroyed. 10560_ Slammed into P-80 Master. 10564_ The unstable cave ceiling collapses. 10564_ P-80 Master crushed by falling debris. 10564_ Relay Coupler [NC] destroyed. 10564_ The unstable cave ceiling collapses. 10564_ Crushed by falling debris. 10567_ Discarded Broken Imp. Signal Interpreter. 10584_ U-05 Engineer destroyed. 10587_ The unstable cave ceiling collapses. 10591_ P-80 Master crushed by falling debris. Map ----- +----------------------------------------------------+ | ??????????????????????????????????????????????? | | ??????????????????????????????????????????????? | | ??????????????????????????????????????????????? | | ???????????????????????????????????????????????# | | ???????????????????????????????????????????????# | | ???????????????????????????????????????????????# | | ???????????????????????????????????????????????# | | ???????????????????????????????????????????????# | | ???????????????????????????????????????????????# | | ?????????????????????????????????????????""""#?# | | ?????????????????????????????????????????""""#?# | | ?????????????????????????????????????????""""??# | | ?????????????????????????????????????????"""???# | | ????????????????????????????????????????? ???# | | ????????????????????????????????????????? ????# | | ????????????????????????????????????#+###/###### | | ????????????????????????????????????# | | ????????????????????????????????????# | | ????????????????????????????????????# | | ????????????????????????????????????# | | ???????????????????????????????###??#+# | | ???????????????????????????????# ??# g | | ???????????????????????????????# # """"" | | ???????????????????????????????# + """"" | | ????????????????????????###????# # """"" | | ????????????????????????#@#????# ??# | | ?????????????????????#### #????# ????# | | ?????????????????????#% #p ????######## | | ?????????????????????# #% #???# # | | ?????????????????????# # ???# # ####+##/ | | ?????????????????????# #??# # #?????? | | ?????????????????????##% #?# # #??????? | | ????????????????#######" ;=;#?# # #??????? | | ????????????????# # !% #??? # #??????? | | ????????????????# # ! ! ######+### #??????# | | ????????????????# + ! #??????# | | ????????????????# # %BB###### ####??????# | | ????????????????# # BB;#???# #?????????+ | | ????????????????# ####;;p#???# #?????????# | | ????????????????#####+##??#;;;##### #?????????# | | ????????????????????# ????# # #?????????# | | ????????????????????# ????# # ########### | | ????????????????????# ????# # # # | | ????????????????????# ????# # # # | | ????????????????????# ????# # / """ ! # | | ????????????????????# ????# " # """ + | | ????????????????????#?????# " # """ # | | ??????????????????????????# " / # | | ??????????????????????????# # # # | | ??????????????????????????# ]= # # # | +----------------------------------------------------+ Best States ------------- Heat Dissipation 103 Energy Generation 37 Energy Capacity 290 Matter Stores 300 Matter Capacity 300 Sight Range 16 Terrain Scan Density 110 Armor Coverage 750 Resistance: KI 20 Core Shielding 20 Propulsion Shielding 66 Weapon Shielding 66 Evasion (%) 55 Targeting Accuracy 5 Recoil Reduction 4 Offensive Hacking 10 Relay Coupler Types 4 Relay Coupler Value 88 Item Schematics ----------------- None Robot Schematics ------------------ None Fabricated ------------ G-67 Veteran | x3 | -4/Factory | Preloaded Repaired ---------- Lrg. Storage Unit | 1% | -3/Research Studied --------- Remote Datajack | -6/Factory | Hacked Arm. Huge Wheel | -6/Factory | Hacked Carbon-fiber Leg | -6/Factory | Hacked Mic. Nuclear Core | -6/Factory | Hacked Flexi-carbon Leg | -3/Research | Hacked Alien Tech Used ----------------- None Achievements -------------- Assimilation Complete Factory Defaults Infiltrator Mindtrick Not Today, Chutes Challenges ------------ None Game ------ Seed MolecularSniperSuperbattery Manual? 0 Play Time 01:57:44 Cumulative 46.1 hours Start 2026.07.21 @ 09:13:10 End 2026.07.22 @ 12:31:50 Sessions 13 Manual Loads 0 Difficulty Rogue Special Mode None Game No. 69 Rogue 69 Adventurer 0 Explorer 0 Win Type - Total 1 Types 1/0/0/0/0/0/0/0/0/0 Lore% 31 Gallery% 34 Achievement% 27 Wizard Run 0 Options --------- Layout 1 ASCII 0 Keyboard 0 Movement Mouse Keybinds 0 Fullscreen 1 Font 20/SmallcapsGlow Map View 50x35 Zoom Use 0% Tactical HUD 1 Map Filters NONE Filters NONE Steam 1 RUN: a12a0569-b163-4bdc-8799-aeaf22914d14